bitfinex/quotes_BTCUSD_20240721
["timestamp","ask_amount","ask_price","bid_price","bid_amount"]
[1721525237304,0.0693,67281.0,67280.0,1.0612917]
[1721525237478,0.0693,67281.0,67280.0,1.18470717]
[1721525237893,0.0693,67281.0,67280.0,1.19370717]
[1721525238619,0.0693,67281.0,67280.0,0.89644217]
[1721525242824,0.0693,67281.0,67280.0,1.19370717]
[1721525243461,0.00084,67288.0,67287.0,0.445851]
[1721525243676,0.07014,67288.0,67287.0,0.74403274]
[1721525243879,0.07014,67288.0,67287.0,0.75298345]
[1721525244832,0.07014,67288.0,67287.0,0.75798345]
[1721525249636,0.07014,67288.0,67287.0,1.05521745]
[1721525249866,0.00084,67288.0,67287.0,1.17861101]
[1721525250636,0.00084,67288.0,67287.0,1.17361101]
[1721525250999,0.00084,67288.0,67287.0,1.18061101]
[1721525251443,0.00084,67288.0,67287.0,0.88037701]
[1721525251776,0.00184,67288.0,67287.0,0.90837701]
[1721525251933,0.00184,67288.0,67287.0,0.78498345]
[1721525252135,0.00184,67288.0,67287.0,0.90838287]
[1721525253178,0.00084,67288.0,67287.0,0.89438287]
[1721525253388,0.00084,67288.0,67287.0,0.87638287]
[1721525253593,0.00084,67288.0,67287.0,0.88538287]
[1721525253817,0.00084,67288.0,67287.0,0.89638287]
[1721525254020,0.00084,67288.0,67287.0,0.87638287]
[1721525254425,0.00084,67288.0,67287.0,0.89638287]
[1721525256124,0.00084,67288.0,67287.0,0.77298345]
[1721525256358,0.00084,67288.0,67287.0,0.89638179]
[1721525259428,0.00084,67288.0,67287.0,0.89638254]
[1721525259615,0.00084,67288.0,67287.0,0.89638255]
[1721525259869,0.00084,67288.0,67287.0,0.77298345]
[1721525260130,0.00084,67288.0,67287.0,0.89638255]
[1721525261448,0.00084,67288.0,67287.0,0.89730655]
[1721525262506,0.00084,67288.0,67287.0,0.89730625]
[1721525263813,0.00084,67288.0,67287.0,0.77390745]
[1721525264026,0.00084,67288.0,67287.0,0.89730543]
[1721525266468,0.00084,67288.0,67287.0,0.60007143]
[1721525268221,0.0227143,67288.0,67287.0,0.60007143]
[1721525268929,0.0227143,67288.0,67287.0,0.60006983]
[1721525270257,0.00084,67288.0,67287.0,0.60006983]
[1721525270674,0.00084,67288.0,67287.0,0.89730383]
[1721525271287,0.00084,67288.0,67287.0,1.49177183]
[1721525272130,0.00084,67288.0,67287.0,1.48276327]
[1721525272339,0.00084,67288.0,67287.0,1.4827637]
[1721525272968,0.00184,67288.0,67287.0,1.4967637]
[1721525273623,0.00084,67288.0,67287.0,1.4827637]
[1721525274014,0.00184,67288.0,67287.0,1.4857637]
[1721525274151,0.00184,67288.0,67287.0,1.4997637]
[1721525274562,0.00184,67288.0,67287.0,1.4857637]
[1721525274756,0.00184,67288.0,67287.0,1.4997637]
[1721525275163,0.00184,67288.0,67287.0,1.37637545]
[1721525275364,0.00184,67288.0,67287.0,1.49976242]
[1721525277287,0.00184,67288.0,67287.0,0.90529442]
[1721525278353,0.00184,67288.0,67287.0,0.78190745]
[1721525278556,0.00184,67288.0,67287.0,0.90529615]
[1721525281334,0.00184,67288.0,67287.0,0.90529661]
[1721525281544,0.00184,67288.0,67287.0,1.20253061]
[1721525281959,0.00184,67288.0,67287.0,0.90529661]
[1721525282357,0.00184,67288.0,67287.0,1.20253061]
[1721525283022,0.148594,67298.0,67292.0,0.223904]
[1721525283224,0.0693,67294.0,67293.0,0.27199216]
[1721525283429,0.0693,67294.0,67293.0,0.28101284]
[1721525284214,0.0693,67294.0,67293.0,0.13240984]
[1721525284613,0.0693,67294.0,67293.0,0.14440969]
[1721525285768,0.0693,67294.0,67293.0,0.15440969]
[1721525285969,0.0693,67294.0,67293.0,0.30301269]
[1721525286801,0.0693,67294.0,67293.0,0.31198048]
[1721525287246,0.0693,67294.0,67293.0,0.31197875]
[1721525290355,0.0785,67298.0,67294.0,0.1486]
[1721525290462,0.0693,67295.0,67294.0,0.1486]
[1721525290666,0.0693,67295.0,67294.0,0.27198905]
[1721525291690,0.0693,67295.0,67294.0,0.28298905]
[1721525293076,0.0693,67295.0,67294.0,0.28898905]
[1721525293283,0.0693,67295.0,67294.0,0.29800223]
[1721525293482,0.0693,67295.0,67294.0,0.29800232]
[1721525293682,0.0693,67295.0,67294.0,0.29200232]
[1721525293885,0.0693,67295.0,67294.0,0.30100232]
[1721525297279,0.0693,67295.0,67294.0,0.30100157]
[1721525299973,0.0693,67295.0,67294.0,0.30100182]
[1721525302267,0.0693,67295.0,67294.0,0.15240182]
[1721525302713,0.0693,67295.0,67294.0,0.30100282]
[1721525302944,0.0693,67295.0,67294.0,0.17761418]
[1721525303152,0.0693,67295.0,67294.0,0.30100712]
[1721525305970,0.0693,67295.0,67294.0,0.15240612]
[1721525306297,0.0693,67295.0,67294.0,0.15240594]
[1721525309377,0.0693,67295.0,67294.0,0.02901318]
[1721525309604,0.0693,67295.0,67294.0,0.15240529]
[1721525309993,0.0693,67295.0,67294.0,0.02901318]
[1721525310209,0.135381,67295.0,67294.0,0.15240529]
[1721525312664,0.135381,67295.0,67294.0,0.15240534]
[1721525313707,0.0693,67295.0,67294.0,0.15240534]
[1721525315837,0.0693,67295.0,67294.0,0.02901318]
[1721525316042,0.0693,67295.0,67294.0,0.15240579]
[1721525319069,0.0693,67295.0,67294.0,0.02901318]
[1721525319307,0.0693,67295.0,67294.0,0.15240487]
[1721525320144,0.13984242,67295.0,67294.0,0.15240487]
[1721525321442,0.0693,67295.0,67294.0,0.15240487]
[1721525322311,0.0693,67295.0,67294.0,0.15240507]
[1721525322883,0.0693,67295.0,67294.0,0.15240489]
[1721525324080,0.0693,67295.0,67294.0,0.15240532]
[1721525325205,0.0693,67295.0,67294.0,0.15332932]
[1721525325401,0.16956042,67295.0,67294.0,0.15332932]
[1721525325605,0.16956042,67295.0,67294.0,0.15332943]
[1721525325831,0.0693,67295.0,67294.0,0.15332943]
[1721525329032,0.0693,67295.0,67294.0,0.15332935]
[1721525332008,0.0693,67295.0,67294.0,0.15332943]
[1721525332557,0.217899,67295.0,67294.0,0.15332943]
[1721525333101,0.3181608,67295.0,67294.0,0.15332943]
[1721525333502,0.217899,67295.0,67294.0,0.15332943]
[1721525335707,0.217899,67295.0,67294.0,0.02993718]
[1721525335912,0.217899,67295.0,67294.0,0.15332943]
[1721525338450,0.217899,67295.0,67294.0,0.15332942]
[1721525341245,0.217899,67295.0,67294.0,0.15332943]
[1721525347162,0.217899,67295.0,67294.0,0.02993718]
[1721525347321,0.217899,67295.0,67294.0,0.15333112]
[1721525347729,0.217899,67295.0,67294.0,0.02993718]
[1721525347926,0.217899,67295.0,67294.0,0.14431793]
[1721525348143,0.217899,67295.0,67294.0,0.15332537]
[1721525350562,0.217899,67295.0,67294.0,0.15332425]
[1721525353072,0.0693,67295.0,67294.0,0.23082425]
[1721525353310,0.04462534,67299.0,67294.0,0.29502425]
[1721525353523,0.0693,67295.0,67294.0,0.17163144]
[1721525353733,0.0693,67295.0,67294.0,0.2950237]
[1721525354151,0.0693,67295.0,67294.0,0.2860237]
[1721525354573,0.0693,67295.0,67294.0,0.2910237]
[1721525354976,0.0693,67295.0,67294.0,0.2860237]
[1721525355335,0.0693,67295.0,67294.0,0.2950237]
[1721525360066,0.0693,67295.0,67294.0,0.29502536]
[1721525360507,0.0693,67295.0,67294.0,0.29502494]
[1721525363181,0.0693,67295.0,67294.0,0.29502429]
[1721525366440,0.0693,67295.0,67294.0,0.29502339]
[1721525367304,0.0693,67295.0,67294.0,0.44362439]
[1721525369478,0.0693,67295.0,67294.0,0.32023244]
[1721525369697,0.0693,67295.0,67294.0,0.44362439]
[1721525373077,0.0693,67295.0,67294.0,0.32023244]
[1721525373281,0.0693,67295.0,67294.0,0.44362439]
[1721525379082,0.0693,67295.0,67294.0,0.44362451]
[1721525382342,0.0693,67295.0,67294.0,0.44362455]
[1721525384345,0.0693,67295.0,67294.0,0.15333312]
[1721525384346,0.55972465,67295.0,67294.0,0.15333312]
[1721525384547,0.657897,67295.0,67294.0,0.02993144]
[1721525384756,0.657897,67295.0,67294.0,0.020924]
[1721525385640,0.657897,67295.0,67294.0,0.009924]
[1721525385852,0.70250814,67295.0,67294.0,0.009924]
[1721525386064,0.70250814,67295.0,67294.0,0.002924]
[1721525386065,0.657897,67295.0,67294.0,0.002924]
[1721525386279,0.70250808,67295.0,67294.0,0.000924]
[1721525386699,0.70250808,67295.0,67294.0,0.001924]
[1721525387282,0.70350808,67295.0,67294.0,0.001924]
[1721525387750,0.658897,67295.0,67294.0,0.001924]
[1721525387927,0.657897,67295.0,67294.0,0.001924]
[1721525388875,0.657897,67295.0,67294.0,0.000924]
[1721525389099,0.955095,67295.0,67294.0,0.002924]
[1721525389314,1.2119727,67295.0,67294.0,0.000924]
[1721525389524,1.50914603,67295.0,67294.0,0.000924]
[1721525389729,1.39767299,67295.0,67294.0,0.000924]
[1721525390283,1.44767299,67295.0,67294.0,0.001924]
[1721525390503,1.51011415,67295.0,67294.0,0.000924]
[1721525390878,1.51817188,67295.0,67294.0,0.000924]
[1721525391657,1.52017188,67295.0,67294.0,0.001924]
[1721525391865,1.52114433,67295.0,67294.0,0.002924]
[1721525392075,1.52114433,67295.0,67294.0,0.001924]
[1721525392487,1.41073072,67295.0,67294.0,0.002924]
[1721525393398,1.54982943,67295.0,67294.0,0.002924]
[1721525393603,1.54982943,67295.0,67287.0,0.000924]
[1721525393604,1.040301,67288.0,67287.0,0.000924]
[1721525393831,1.40088274,67288.0,67287.0,0.000924]
[1721525394037,1.53526291,67288.0,67287.0,0.000924]
[1721525394464,1.42388274,67288.0,67287.0,0.000924]
[1721525394843,1.42588274,67288.0,67287.0,0.000924]
[1721525395043,1.58023231,67288.0,67287.0,0.000924]
[1721525395513,1.87746131,67288.0,67287.0,0.000924]
[1721525395718,1.58023231,67288.0,67287.0,0.000924]
[1721525396337,1.62474958,67288.0,67287.0,0.000924]
[1721525396673,0.78958927,67288.0,67287.0,0.000924]
[1721525396877,0.517143,67288.0,67287.0,0.000924]
[1721525397090,0.219914,67288.0,67287.0,0.07809879]
[1721525397287,0.219914,67288.0,67287.0,0.08713599]
[1721525397725,0.515143,67288.0,67287.0,0.08713599]
[1721525397943,0.60083073,67288.0,67287.0,0.0099612]
[1721525398133,0.60283073,67288.0,67287.0,0.000924]
[1721525398560,0.60083073,67288.0,67287.0,0.000924]
[1721525398761,0.515143,67288.0,67287.0,0.000924]
[1721525398971,0.217914,67288.0,67287.0,0.000924]
[1721525399178,0.0693,67292.0,67289.0,0.1428]
[1721525399385,0.0693,67292.0,67290.0,0.0090365]
[1721525399592,0.0693,67292.0,67290.0,0.1576465]
[1721525401956,0.0693,67292.0,67290.0,0.1596465]
[1721525403324,0.0693,67292.0,67291.0,0.148608]
[1721525405024,0.0693,67292.0,67291.0,0.150608]
[1721525405362,0.0693,67295.0,67293.0,0.148601]
[1721525405564,0.0693,67295.0,67294.0,0.075]
[1721525405929,0.0693,67295.0,67294.0,0.223601]
[1721525406787,0.0693,67295.0,67294.0,1.03618874]
[1721525406788,0.002,67295.0,67294.0,1.03618874]
[1721525406949,0.002,67295.0,67294.0,1.33339174]
[1721525407146,0.005,67295.0,67294.0,1.33339174]
[1721525407356,0.005,67295.0,67294.0,1.45677746]
[1721525407554,0.002,67295.0,67294.0,1.33339174]
[1721525407756,0.002,67295.0,67294.0,1.45677516]
[1721525407957,0.00084,67300.0,67299.0,0.445771]
[1721525408158,0.00084,67300.0,67299.0,0.584571]
[1721525408791,0.00084,67300.0,67299.0,1.03613374]
[1721525409005,0.00084,67300.0,67299.0,1.45669007]
[1721525409667,0.00084,67300.0,67299.0,1.46768726]
[1721525410035,0.00084,67300.0,67299.0,1.33331474]
[1721525410242,0.00084,67300.0,67299.0,1.45668726]
[1721525411086,0.00084,67300.0,67299.0,1.47068726]
[1721525411533,0.00084,67300.0,67299.0,1.45668726]
[1721525411760,0.00084,67300.0,67299.0,1.47068726]
[1721525412425,0.00084,67300.0,67299.0,1.48468726]
[1721525412650,0.00084,67300.0,67299.0,1.47067212]
[1721525412945,0.00084,67300.0,67299.0,1.48467212]
[1721525414103,0.00084,67300.0,67299.0,1.47067212]
[1721525414349,0.00084,67300.0,67299.0,1.48467212]
[1721525415676,0.00084,67300.0,67299.0,1.48467171]
[1721525417067,0.00084,67300.0,67299.0,1.18749071]
[1721525417268,0.00084,67300.0,67299.0,1.06413374]
[1721525417723,0.00084,67300.0,67299.0,1.07312489]
[1721525425597,0.00084,67300.0,67299.0,1.19649107]
[1721525428185,0.00084,67300.0,67299.0,1.07312489]
[1721525428415,0.00084,67300.0,67299.0,1.19649107]
[1721525431505,0.00084,67300.0,67299.0,1.19649102]
[1721525434541,0.00084,67300.0,67299.0,1.07312489]
[1721525434741,0.00084,67300.0,67299.0,1.19649057]
[1721525435142,0.00084,67300.0,67299.0,1.19648993]
[1721525437752,0.00084,67300.0,67299.0,1.1964902]
[1721525441016,0.00084,67300.0,67299.0,1.07312489]
[1721525441252,0.00084,67300.0,67299.0,1.1964902]
[1721525444111,0.00084,67300.0,67299.0,1.07312489]
[1721525444303,0.00084,67300.0,67299.0,1.1964902]
[1721525444556,0.00084,67300.0,67299.0,1.07312489]
[1721525444737,0.00084,67300.0,67299.0,1.1964902]
[1721525447552,0.00084,67300.0,67299.0,1.19649018]
[1721525448182,0.00084,67300.0,67299.0,1.4231922]
[1721525450208,0.00084,67300.0,67299.0,1.19649018]
[1721525456849,0.00084,67300.0,67299.0,1.07312489]
[1721525457058,0.00084,67300.0,67299.0,1.19649018]
[1721525457679,0.00084,67300.0,67299.0,2.06440772]
[1721525457902,0.00084,67300.0,67299.0,2.34510771]
[1721525458106,0.00084,67300.0,67299.0,2.64929112]
[1721525458267,0.00084,67300.0,67299.0,2.64928914]
[1721525458705,0.00084,67300.0,67299.0,2.63528914]
[1721525459152,0.00084,67300.0,67299.0,2.59928914]
[1721525459353,0.00084,67300.0,67299.0,2.58528914]
[1721525459719,0.00084,67300.0,67299.0,2.57128914]
[1721525459928,0.00084,67300.0,67299.0,2.13289395]
[1721525460140,0.00084,67300.0,67299.0,2.43159379]
[1721525460349,0.00084,67300.0,67299.0,2.38159379]
[1721525460557,0.00084,67300.0,67299.0,2.39573549]
[1721525460767,0.00084,67300.0,67299.0,2.46222979]
[1721525461178,0.00084,67300.0,67299.0,2.40441449]
[1721525462380,0.00084,67300.0,67299.0,2.40432948]
[1721525462790,0.00084,67300.0,67299.0,2.4930181]
[1721525463439,0.00084,67300.0,67299.0,2.49300134]
[1721525463825,0.00084,67300.0,67299.0,2.40432425]
[1721525465266,0.00084,67300.0,67299.0,1.77616589]
[1721525465469,0.00084,67300.0,67299.0,2.40434311]
[1721525466595,0.00084,67300.0,67299.0,2.47085175]
[1721525466770,0.00084,67300.0,67299.0,2.40434311]
[1721525466943,0.00084,67300.0,67299.0,2.47085362]
[1721525467353,0.00084,67300.0,67299.0,2.40434311]
[1721525468595,0.00084,67300.0,67299.0,2.17206094]
[1721525468803,0.00084,67300.0,67299.0,2.40429475]
[1721525469009,0.00084,67300.0,67299.0,2.47079885]
[1721525470462,0.00084,67300.0,67299.0,2.1414072]
[1721525470697,0.00084,67300.0,67299.0,2.0749031]
[1721525471962,0.00084,67300.0,67299.0,2.0749369]
[1721525472371,0.00084,67300.0,67299.0,2.07493494]
[1721525472994,0.00084,67300.0,67299.0,2.14423494]
[1721525473200,0.00084,67300.0,67299.0,2.56229655]
[1721525473403,0.00084,67300.0,67299.0,2.47362635]
[1721525475070,0.00084,67300.0,67299.0,2.47362577]
[1721525475273,0.00084,67300.0,67299.0,2.4708209]
[1721525475685,0.00084,67300.0,67299.0,2.40432577]
[1721525476063,0.00084,67300.0,67299.0,2.47081909]
[1721525477135,0.00084,67300.0,67299.0,2.40432577]
[1721525478169,0.00084,67300.0,67299.0,2.07497789]
[1721525478377,0.00084,67300.0,67299.0,2.40436536]
[1721525481252,0.00084,67300.0,67299.0,1.77616589]
[1721525481458,0.00084,67300.0,67299.0,2.4043333]
[1721525483341,0.00084,67300.0,67299.0,2.49298507]
[1721525483557,0.00084,67300.0,67299.0,2.56228507]
[1721525484512,0.00084,67300.0,67299.0,2.47371968]
[1721525484726,0.00084,67300.0,67299.0,2.58452717]
[1721525484945,0.00084,67300.0,67299.0,2.52371968]
[1721525485143,0.00084,67300.0,67299.0,2.47371796]
[1721525487055,0.00084,67300.0,67299.0,2.52371796]
[1721525487592,0.00084,67300.0,67299.0,2.52417316]
[1721525487794,0.00084,67300.0,67299.0,2.22484293]
[1721525488003,0.00084,67300.0,67299.0,2.61289776]
[1721525488218,0.00084,67300.0,67299.0,1.89923693]
[1721525488430,0.14444,67300.0,67299.0,0.76049206]
[1721525488907,0.14444,67300.0,67299.0,1.05767306]
[1721525489747,0.14444,67300.0,67299.0,1.04367306]
[1721525490195,0.14444,67300.0,67299.0,1.05767306]
[1721525490403,0.00084,67300.0,67299.0,0.93432489]
[1721525490609,0.00084,67300.0,67299.0,1.04369382]
[1721525491046,0.00084,67300.0,67299.0,1.02969382]
[1721525491266,0.00084,67300.0,67299.0,1.04369382]
[1721525491454,0.00084,67300.0,67299.0,1.05769382]
[1721525491652,0.00084,67300.0,67299.0,1.02969382]
[1721525492063,0.00084,67300.0,67299.0,1.04369382]
[1721525493777,0.00084,67300.0,67299.0,1.05769382]
[1721525494398,0.00084,67300.0,67299.0,1.20209382]
[1721525495792,0.00084,67300.0,67299.0,1.12199382]
[1721525496041,0.00084,67300.0,67299.0,1.05769382]
[1721525496909,0.00084,67300.0,67299.0,1.05769355]
[1721525497318,0.00084,67300.0,67299.0,0.93432489]
[1721525497551,0.00084,67300.0,67299.0,1.05769355]
[1721525499901,0.00084,67300.0,67299.0,1.05768938]
[1721525500132,0.00084,67300.0,67299.0,1.05768868]
[1721525500341,0.00084,67300.0,67299.0,1.35486968]
[1721525501402,0.00084,67300.0,67299.0,2.07257815]
[1721525501616,0.00084,67300.0,67299.0,2.59060413]
[1721525501817,0.00084,67300.0,67299.0,2.56276455]
[1721525503035,0.00084,67300.0,67299.0,2.61306145]
[1721525503209,0.00084,67300.0,67299.0,2.58506145]
[1721525503453,0.00084,67300.0,67299.0,2.59906145]
[1721525503660,0.00084,67300.0,67299.0,2.61306145]
[1721525503869,0.00084,67300.0,67299.0,2.59906145]
[1721525504704,0.00084,67300.0,67299.0,1.77308689]
[1721525504910,0.00084,67300.0,67299.0,2.40222276]
[1721525505120,0.00084,67300.0,67299.0,2.40254494]
[1721525505340,0.00084,67300.0,67299.0,1.96096394]
[1721525505958,0.00084,67300.0,67299.0,2.02744367]
[1721525506172,0.00084,67300.0,67299.0,2.01344367]
[1721525506396,0.00084,67300.0,67299.0,1.31750589]
[1721525506586,0.00084,67300.0,67299.0,2.01358651]
[1721525506998,0.00084,67300.0,67299.0,2.02758651]
[1721525509660,0.00084,67300.0,67299.0,2.027627]
[1721525510059,0.00084,67300.0,67299.0,1.63175995]
[1721525510257,0.00084,67300.0,67299.0,2.02762827]
[1721525512659,0.00084,67300.0,67299.0,1.33150589]
[1721525512862,0.00084,67300.0,67299.0,2.02733493]
[1721525514944,0.00084,67300.0,67299.0,2.37451593]
[1721525516014,0.00084,67300.0,67299.0,2.37439466]
[1721525516859,0.00084,67300.0,67299.0,2.51219466]
[1721525517903,0.00084,67300.0,67299.0,2.49571312]
[1721525518304,0.00084,67300.0,67299.0,2.56216718]
[1721525518510,0.00084,67300.0,67299.0,2.51216718]
[1721525518914,0.00084,67300.0,67299.0,2.56216718]
[1721525519113,0.00084,67300.0,67299.0,2.44574922]
[1721525519452,0.00084,67300.0,67299.0,2.49574922]
[1721525520315,0.00084,67300.0,67299.0,2.44574922]
[1721525521487,0.00084,67300.0,67299.0,2.4460803]
[1721525521922,0.00084,67300.0,67299.0,2.11671443]
[1721525522129,0.00084,67300.0,67299.0,2.44609779]
[1721525524207,0.00084,67300.0,67299.0,2.39609779]
[1721525524415,0.00084,67300.0,67299.0,1.96111679]
[1721525524619,0.00084,67300.0,67299.0,1.67629227]
[1721525526652,0.00084,67300.0,67299.0,1.33477761]
[1721525526845,0.00084,67300.0,67299.0,1.38660246]
[1721525527611,0.00084,67300.0,67299.0,1.37260246]
[1721525528149,0.00084,67300.0,67299.0,1.38660246]
[1721525529182,0.00084,67300.0,67299.0,1.33477761]
[1721525529588,0.00084,67300.0,67299.0,1.38661036]
[1721525530166,0.00084,67300.0,67299.0,1.33477761]
[1721525530406,0.00084,67300.0,67299.0,1.63195861]
[1721525530883,0.00084,67300.0,67299.0,1.63148236]
[1721525534124,0.00084,67300.0,67299.0,1.63139618]
[1721525534538,0.00084,67300.0,67299.0,1.63140613]
[1721525536274,0.00084,67300.0,67299.0,1.67574832]
[1721525536512,0.00084,67300.0,67299.0,1.92858713]
[1721525537451,0.00084,67300.0,67299.0,1.92872876]
[1721525538485,0.00084,67300.0,67299.0,2.25811612]
[1721525538659,0.00084,67300.0,67299.0,1.96093512]
[1721525539775,0.00084,67300.0,67299.0,2.0274793]
[1721525539986,0.00084,67300.0,67299.0,1.63154776]
[1721525540194,0.21694,67300.0,67299.0,1.23464827]
[1721525540403,0.21694,67300.0,67299.0,1.05768378]
[1721525541995,0.14764,67300.0,67299.0,1.05768378]
[1721525543252,0.14764,67300.0,67299.0,1.05769183]
[1721525543837,0.365528,67300.0,67299.0,0.16035809]
[1721525544050,0.662704,67300.0,67299.0,0.16035809]
[1721525544277,0.95988,67300.0,67299.0,0.03699115]
[1721525544480,1.09004018,67300.0,67299.0,0.028]
[1721525544914,1.09004018,67300.0,67299.0,0.014]
[1721525545333,1.09004018,67300.0,67299.0,0.024]
[1721525545568,0.148598,67296.0,67294.0,0.000924]
[1721525545766,0.2131,67295.0,67294.0,0.000924]
[1721525546898,0.2131,67295.0,67294.0,0.004924]
[1721525547323,0.2131,67295.0,67294.0,0.000924]
[1721525548137,0.2131,67295.0,67294.0,0.008924]
[1721525548506,0.2131,67295.0,67294.0,0.000924]
[1721525548706,0.32319399,67295.0,67294.0,0.004924]
[1721525548929,0.32319399,67295.0,67294.0,0.010924]
[1721525549556,0.956095,67295.0,67294.0,0.018924]
[1721525549912,1.253293,67295.0,67294.0,0.014924]
[1721525550113,1.183993,67295.0,67294.0,0.020924]
[1721525550313,1.253293,67295.0,67294.0,0.020924]
[1721525550771,1.253293,67295.0,67294.0,0.000924]
[1721525551131,1.253293,67295.0,67294.0,0.006924]
[1721525551331,1.253293,67295.0,67294.0,0.000924]
[1721525551882,1.253293,67295.0,67294.0,0.002924]
[1721525552096,0.956095,67295.0,67294.0,0.002924]
[1721525552724,0.1438,67295.0,67294.0,0.002924]
[1721525552928,0.361699,67295.0,67294.0,0.002924]
[1721525553109,0.361699,67295.0,67294.0,0.01101146]
[1721525553313,0.361699,67295.0,67294.0,0.002924]
[1721525553559,0.361699,67295.0,67294.0,0.01101146]
[1721525553764,0.361699,67295.0,67294.0,0.002924]
[1721525553971,0.361699,67295.0,67294.0,0.01101146]
[1721525554175,0.361699,67295.0,67294.0,0.002924]
[1721525554376,0.361699,67295.0,67294.0,0.01101146]
[1721525554577,0.361699,67295.0,67294.0,0.002924]
[1721525554782,0.361699,67295.0,67294.0,0.01101146]
[1721525554985,0.361699,67295.0,67294.0,0.002924]
[1721525555163,0.361699,67295.0,67294.0,0.01101146]
[1721525555368,0.361699,67295.0,67294.0,0.002924]
[1721525555583,0.361699,67295.0,67294.0,0.01101146]
[1721525557372,0.658897,67295.0,67294.0,0.01101146]
[1721525557596,0.658897,67295.0,67294.0,0.002924]
[1721525558781,0.7545898,67295.0,67294.0,0.002924]
[1721525559620,0.658897,67295.0,67294.0,0.002924]
[1721525561745,0.2131,67295.0,67294.0,0.002924]
[1721525562110,0.1477,67299.0,67294.0,0.16543406]
[1721525562316,0.0693,67299.0,67298.0,0.445777]
[1721525562522,0.0693,67299.0,67298.0,0.148592]
[1721525562726,0.0693,67299.0,67298.0,0.15671938]
[1721525564273,0.0693,67299.0,67298.0,0.16671938]
[1721525565483,0.0693,67299.0,67298.0,0.01812738]
[1721525565484,0.1059424,67299.0,67298.0,0.01812738]
[1721525565681,0.0693,67299.0,67298.0,0.01812738]
[1721525565895,0.0693,67299.0,67298.0,0.02612738]
[1721525566295,0.21789,67299.0,67298.0,0.02612738]
[1721525566500,0.0693,67299.0,67298.0,0.02612738]
[1721525566701,0.0693,67299.0,67298.0,0.01812738]
[1721525567150,0.0693,67299.0,67298.0,0.01612738]
[1721525567358,0.0693,67299.0,67298.0,0.02612738]
[1721525567782,1.0221112,67299.0,67298.0,0.02612738]
[1721525567994,0.955752,67299.0,67298.0,0.02612738]
[1721525568207,0.955752,67299.0,67298.0,0.018]
[1721525569602,0.589271,67299.0,67298.0,0.018]
[1721525569949,0.658571,67299.0,67298.0,0.018]
[1721525571559,0.589271,67299.0,67298.0,0.018]
[1721525571730,0.658571,67299.0,67298.0,0.018]
[1721525572360,0.658571,67299.0,67298.0,0.02621661]
[1721525572561,0.658571,67299.0,67298.0,0.018]
[1721525574346,1.45102002,67299.0,67298.0,0.018]
[1721525574548,1.45102002,67299.0,67278.0,0.07717479]
[1721525574549,0.148614,67289.0,67284.0,0.148623]
[1721525574774,0.148614,67289.0,67284.0,0.30300474]
[1721525574775,0.0693,67285.0,67284.0,0.30300474]
[1721525574994,0.0693,67285.0,67284.0,0.42641329]
[1721525575278,0.0693,67285.0,67284.0,0.12340855]
[1721525575700,0.0693,67285.0,67284.0,0.13740855]
[1721525576300,0.0693,67285.0,67284.0,0.12340855]
[1721525576515,0.0693,67285.0,67284.0,0.20620855]
[1721525576713,0.0703,67285.0,67284.0,0.29730855]
[1721525577071,0.0693,67285.0,67284.0,0.13740855]
[1721525577250,0.0693,67285.0,67284.0,0.12340855]
[1721525577455,0.0693,67285.0,67284.0,0.14740855]
[1721525577456,0.0703,67285.0,67284.0,0.14740855]
[1721525578283,0.0703,67285.0,67284.0,0.14833255]
[1721525579104,0.1751918,67285.0,67284.0,0.14833255]
[1721525579314,0.216,67285.0,67284.0,0.14833255]
[1721525580745,0.364621,67285.0,67284.0,0.14833369]
[1721525583022,0.0703,67285.0,67284.0,0.14833369]
[1721525583230,0.0703,67285.0,67284.0,0.024924]
[1721525583432,0.0703,67285.0,67284.0,0.14833399]
[1721525583789,0.0703,67285.0,67284.0,0.024924]
[1721525583790,0.218921,67285.0,67284.0,0.024924]
[1721525583989,0.218921,67285.0,67284.0,0.14833399]
[1721525585250,0.218921,67285.0,67284.0,0.15656654]
[1721525585724,0.2851062,67285.0,67284.0,0.15656654]
[1721525586650,0.218921,67285.0,67284.0,0.15656654]
[1721525588635,0.0703,67285.0,67284.0,0.15656654]
[1721525590368,0.001,67285.0,67284.0,0.53957128]
[1721525590536,0.001,67285.0,67284.0,0.89691828]
[1721525590735,0.001,67285.0,67284.0,0.59967128]
[1721525591040,0.001,67285.0,67284.0,0.45957128]
[1721525592678,0.001,67285.0,67284.0,0.33616129]
[1721525592920,0.001,67285.0,67284.0,0.45956767]
[1721525596504,0.001,67285.0,67284.0,0.45956766]
[1721525596911,0.0703,67285.0,67284.0,0.45956766]
[1721525600536,0.001,67285.0,67284.0,1.11416166]
[1721525600756,0.001,67285.0,67284.0,1.19416166]
[1721525600757,0.0703,67285.0,67284.0,1.19416166]
[1721525600894,0.001,67285.0,67284.0,1.19416166]
[1721525601096,0.001,67285.0,67284.0,1.49140866]
[1721525602065,0.001,67285.0,67284.0,1.48040866]
[1721525602283,0.002794,67295.0,67294.0,0.445804]
[1721525602504,0.0693,67296.0,67295.0,0.148599]
[1721525602733,0.0693,67296.0,67295.0,0.27199053]
[1721525602939,0.0693,67296.0,67295.0,0.28021796]
[1721525603507,0.0693,67296.0,67295.0,0.57741596]
[1721525603910,0.0693,67296.0,67295.0,0.58441596]
[1721525604115,0.0703,67296.0,67295.0,0.58441596]
[1721525605250,0.0693,67296.0,67295.0,0.577415]
[1721525605650,0.0703,67296.0,67295.0,0.591415]
[1721525606866,0.0693,67296.0,67295.0,0.584415]
[1721525607067,0.0703,67296.0,67295.0,0.591415]
[1721525607903,0.0703,67296.0,67295.0,0.584415]
[1721525608282,0.0703,67296.0,67295.0,0.592415]
[1721525608485,0.0703,67296.0,67295.0,0.58541497]
[1721525608486,0.0693,67296.0,67295.0,0.58541497]
[1721525608750,0.0693,67296.0,67295.0,0.57741497]
[1721525608901,0.0703,67296.0,67295.0,0.46102443]
[1721525609110,0.0703,67296.0,67295.0,0.59341577]
[1721525609313,0.0693,67296.0,67295.0,0.46302443]
[1721525609517,0.0693,67296.0,67295.0,0.47102443]
[1721525609718,0.0703,67296.0,67295.0,0.46202443]